[Event "Titled Tuesday Blitz October 11 Early 2022"]
[White "Orlov, Georgi"]
[Black "Jiganchine, Roman"]
[WhiteFideId "2011271"]
[BlackFideId "2603667"]
[WhiteElo "2575"]
[BlackElo "2288"]
[Result "1-0"]
[Round "03"]
[TimeControl "180+1"]
[Date "2022.10.12"]
[WhiteClock "0:01:28"]
[BlackClock "0:00:09"]

1. e4 {[%clk 0:03:00]}  c6 {[%clk 0:02:59]} 2. Nf3 {[%clk 0:02:59]}  d5 {[%clk 0:02:55]} 3. Nc3 {[%clk 0:02:59]}  dxe4 {[%clk 0:02:54]} 4. Nxe4 {[%clk 0:02:59]}  Nf6 {[%clk 0:02:53]} 5. Nxf6+ {[%clk 0:02:59]}  exf6 {[%clk 0:02:53]} 6. Bc4 {[%clk 0:02:59]}  Bd6 {[%clk 0:02:49]} 7. Qe2+ {[%clk 0:02:59]}  Be7 {[%clk 0:02:46]} 8. d4 {[%clk 0:02:58]}  O-O {[%clk 0:02:45]} 9. O-O {[%clk 0:02:52]}  Bg4 {[%clk 0:02:45]} 10. c3 {[%clk 0:02:51]}  a5 {[%clk 0:02:41]} 11. a4 {[%clk 0:02:50]}  Na6 {[%clk 0:02:41]} 12. h3 {[%clk 0:02:50]}  Bh5 {[%clk 0:02:41]} 13. g4 {[%clk 0:02:39]}  Bg6 {[%clk 0:02:40]} 14. Nh4 {[%clk 0:02:39]}  Nc7 {[%clk 0:02:33]} 15. f4 {[%clk 0:02:37]}  f5 {[%clk 0:02:27]} 16. g5 {[%clk 0:02:33]}  Re8 {[%clk 0:02:14]} 17. Qf3 {[%clk 0:02:30]}  b5 {[%clk 0:02:09]} 18. Bb3 {[%clk 0:02:29]}  c5 {[%clk 0:02:01]} 19. Be3 {[%clk 0:02:20]}  cxd4 {[%clk 0:01:56]} 20. Bxd4 {[%clk 0:02:18]}  b4 {[%clk 0:01:35]} 21. Rad1 {[%clk 0:02:16]}  Qb8 {[%clk 0:01:31]} 22. Kh2 {[%clk 0:02:08]}  Ra6 {[%clk 0:01:27]} 23. Be5 {[%clk 0:02:07]}  Qc8 {[%clk 0:01:22]} 24. Bc4 {[%clk 0:02:02]}  Rb6 {[%clk 0:01:09]} 25. Rfe1 {[%clk 0:01:51]}  Ne6 {[%clk 0:01:07]} 26. Bb5 {[%clk 0:01:49]}  Rd8 {[%clk 0:00:56]} 27. Rxd8+ {[%clk 0:01:49]}  Bxd8 {[%clk 0:00:54]} 28. Rd1 {[%clk 0:01:45]}  Nc5 {[%clk 0:00:36]} 29. cxb4 {[%clk 0:01:36]}  axb4 {[%clk 0:00:25]} 30. Qd5 {[%clk 0:01:32]}  Ne6 {[%clk 0:00:21]} 31. Bd7 {[%clk 0:01:29]}  Qc2+ {[%clk 0:00:15]} 32. Rd2 {[%clk 0:01:29]}  Qe4 {[%clk 0:00:09]} 33. Bxe6 {[%clk 0:01:28]} 1-0


[Site "https://www.chess.com"]

[Event "Titled Tuesday Blitz October 11 Early 2022"]
[White "Osinenko, Anton"]
[Black "Ozen, Bahadir"]
[WhiteFideId "4158970"]
[BlackFideId "6337058"]
[WhiteElo "2294"]
[BlackElo "2503"]
[Result "0-1"]
[Round "03"]
[TimeControl "180+1"]
[Date "2022.10.12"]
[WhiteClock "0:00:04"]
[BlackClock "0:01:23"]

1. e4 {[%clk 0:03:00]}  d6 {[%clk 0:03:00]} 2. d4 {[%clk 0:03:00]}  g6 {[%clk 0:03:00]} 3. Bd3 {[%clk 0:03:00]}  Bg7 {[%clk 0:03:00]} 4. Ne2 {[%clk 0:03:01]}  Nf6 {[%clk 0:03:00]} 5. O-O {[%clk 0:03:01]}  O-O {[%clk 0:03:00]} 6. f4 {[%clk 0:02:59]}  e5 {[%clk 0:03:01]} 7. fxe5 {[%clk 0:03:00]}  dxe5 {[%clk 0:03:01]} 8. d5 {[%clk 0:02:59]}  c6 {[%clk 0:03:02]} 9. c4 {[%clk 0:02:59]}  b5 {[%clk 0:03:02]} 10. dxc6 {[%clk 0:02:41]}  bxc4 {[%clk 0:03:00]} 11. Bxc4 {[%clk 0:02:42]}  Qb6+ {[%clk 0:02:45]} 12. Kh1 {[%clk 0:02:41]}  Nxc6 {[%clk 0:02:44]} 13. Nbc3 {[%clk 0:02:37]}  Ng4 {[%clk 0:02:41]} 14. Qe1 {[%clk 0:02:05]}  Ne3 {[%clk 0:02:41]} 15. Nd5 {[%clk 0:01:47]}  Nxd5 {[%clk 0:02:40]} 16. Bxd5 {[%clk 0:01:45]}  Bb7 {[%clk 0:02:26]} 17. Qf2 {[%clk 0:01:08]}  Qa6 {[%clk 0:01:53]} 18. Be3 {[%clk 0:00:58]}  Nb4 {[%clk 0:01:53]} 19. Bxf7+ {[%clk 0:00:52]}  Kh8 {[%clk 0:01:53]} 20. Bc5 {[%clk 0:00:53]}  Nd3 {[%clk 0:01:53]} 21. Qe3 {[%clk 0:00:41]}  Nxc5 {[%clk 0:01:53]} 22. Qxc5 {[%clk 0:00:42]}  Qxe2 {[%clk 0:01:53]} 23. Rae1 {[%clk 0:00:10]}  Qa6 {[%clk 0:01:50]} 24. Qe7 {[%clk 0:00:09]}  Rae8 {[%clk 0:01:44]} 25. Qh4 {[%clk 0:00:07]}  Rd8 {[%clk 0:01:31]} 26. Rf3 {[%clk 0:00:07]}  Rd7 {[%clk 0:01:28]} 27. Rh3 {[%clk 0:00:06]}  h6 {[%clk 0:01:24]} 28. Bb3 {[%clk 0:00:04]}  Rf1+ {[%clk 0:01:23]} 0-1


[Site "https://www.chess.com"]

[Event "Titled Tuesday Blitz October 11 Early 2022"]
[White "Ovchinnikov, Vsevolod"]
[Black "Kushko, Dmitriy"]
[WhiteFideId "24176842"]
[BlackFideId "14162261"]
[WhiteElo "2376"]
[BlackElo "2230"]
[Result "1-0"]
[Round "03"]
[TimeControl "180+1"]
[Date "2022.10.11"]
[WhiteClock "0:00:06"]
[BlackClock "0:00:03"]

1. d4 {[%clk 0:03:00]}  d6 {[%clk 0:02:59]} 2. Nf3 {[%clk 0:03:00]}  g6 {[%clk 0:02:59]} 3. b3 {[%clk 0:03:01]}  Bg7 {[%clk 0:02:59]} 4. Bb2 {[%clk 0:03:02]}  Nf6 {[%clk 0:02:58]} 5. g3 {[%clk 0:03:01]}  O-O {[%clk 0:02:57]} 6. Bg2 {[%clk 0:03:02]}  c6 {[%clk 0:02:45]} 7. O-O {[%clk 0:03:02]}  Qc7 {[%clk 0:02:44]} 8. Nbd2 {[%clk 0:03:01]}  Nbd7 {[%clk 0:02:43]} 9. e4 {[%clk 0:03:00]}  e5 {[%clk 0:02:40]} 10. Re1 {[%clk 0:03:00]}  Re8 {[%clk 0:02:38]} 11. Nc4 {[%clk 0:02:40]}  exd4 {[%clk 0:02:15]} 12. Qxd4 {[%clk 0:02:13]}  Nh5 {[%clk 0:01:38]} 13. Qxd6 {[%clk 0:01:57]}  Qxd6 {[%clk 0:01:36]} 14. Nxd6 {[%clk 0:01:58]}  Bxb2 {[%clk 0:01:34]} 15. Nxe8 {[%clk 0:01:57]}  Bxa1 {[%clk 0:01:34]} 16. Rxa1 {[%clk 0:01:57]}  Nc5 {[%clk 0:01:26]} 17. Nd6 {[%clk 0:01:56]}  a5 {[%clk 0:01:19]} 18. Rd1 {[%clk 0:01:37]}  Bg4 {[%clk 0:01:17]} 19. h3 {[%clk 0:01:37]}  Bxf3 {[%clk 0:01:17]} 20. Bxf3 {[%clk 0:01:38]}  Nf6 {[%clk 0:01:13]} 21. e5 {[%clk 0:01:23]}  Nfd7 {[%clk 0:01:07]} 22. Nxb7 {[%clk 0:01:21]}  Nxe5 {[%clk 0:01:00]} 23. Nxc5 {[%clk 0:01:21]}  Nxf3+ {[%clk 0:01:01]} 24. Kg2 {[%clk 0:01:22]}  Ne5 {[%clk 0:01:00]} 25. a4 {[%clk 0:01:17]}  g5 {[%clk 0:00:53]} 26. f4 {[%clk 0:01:09]}  gxf4 {[%clk 0:00:53]} 27. gxf4 {[%clk 0:01:10]}  Ng6 {[%clk 0:00:53]} 28. Kf3 {[%clk 0:01:06]}  Re8 {[%clk 0:00:49]} 29. Nb7 {[%clk 0:00:39]}  Nh4+ {[%clk 0:00:45]} 30. Kg4 {[%clk 0:00:23]}  Ng2 {[%clk 0:00:45]} 31. Rd8 {[%clk 0:00:23]}  Kf8 {[%clk 0:00:23]} 32. Rxe8+ {[%clk 0:00:22]}  Kxe8 {[%clk 0:00:24]} 33. Nxa5 {[%clk 0:00:20]}  Kd7 {[%clk 0:00:23]} 34. c3 {[%clk 0:00:18]}  Ne1 {[%clk 0:00:13]} 35. Kf5 {[%clk 0:00:16]}  Nd3 {[%clk 0:00:08]} 36. Nc4 {[%clk 0:00:16]}  Nc5 {[%clk 0:00:06]} 37. Nd2 {[%clk 0:00:14]}  Ke7 {[%clk 0:00:05]} 38. a5 {[%clk 0:00:14]}  Na6 {[%clk 0:00:04]} 39. b4 {[%clk 0:00:14]}  Nc7 {[%clk 0:00:04]} 40. Ke5 {[%clk 0:00:11]}  Kd7 {[%clk 0:00:03]} 41. c4 {[%clk 0:00:11]}  Ke7 {[%clk 0:00:02]} 42. Ne4 {[%clk 0:00:10]}  Na6 {[%clk 0:00:02]} 43. b5 {[%clk 0:00:10]}  cxb5 {[%clk 0:00:03]} 44. cxb5 {[%clk 0:00:11]}  Nb4 {[%clk 0:00:04]} 45. Kd4 {[%clk 0:00:09]}  Kd7 {[%clk 0:00:02]} 46. Ng5 {[%clk 0:00:08]}  f6 {[%clk 0:00:02]} 47. Nxh7 {[%clk 0:00:08]}  Ke6 {[%clk 0:00:02]} 48. a6 {[%clk 0:00:07]}  Nd5 {[%clk 0:00:03]} 49. f5+ {[%clk 0:00:07]}  Kd6 {[%clk 0:00:03]} 50. h4 {[%clk 0:00:06]}  Nb6 {[%clk 0:00:03]} 51. h5 {[%clk 0:00:06]} 1-0


[Site "https://www.chess.com"]

[Event "Titled Tuesday Blitz October 11 Early 2022"]
[White "Papasimakopoulos, Alexandros"]
[Black "Reprintsev, Alexander"]
[WhiteFideId "4244125"]
[BlackFideId "14100541"]
[WhiteElo "2357"]
[BlackElo "2230"]
[Result "1/2-1/2"]
[Round "03"]
[TimeControl "180+1"]
[Date "2022.10.12"]
[WhiteClock "0:00:14"]
[BlackClock "0:00:14"]

1. d4 {[%clk 0:03:00]}  d5 {[%clk 0:02:38]} 2. c4 {[%clk 0:02:54]}  e5 {[%clk 0:02:38]} 3. dxe5 {[%clk 0:02:54]}  d4 {[%clk 0:02:37]} 4. a3 {[%clk 0:02:55]}  Nc6 {[%clk 0:02:37]} 5. e3 {[%clk 0:02:55]}  Nge7 {[%clk 0:02:30]} 6. Nf3 {[%clk 0:02:53]}  Bg4 {[%clk 0:02:30]} 7. Be2 {[%clk 0:02:53]}  Bxf3 {[%clk 0:02:29]} 8. Bxf3 {[%clk 0:02:52]}  g6 {[%clk 0:02:28]} 9. exd4 {[%clk 0:02:43]}  Qxd4 {[%clk 0:02:26]} 10. O-O {[%clk 0:02:43]}  Bg7 {[%clk 0:02:24]} 11. Qxd4 {[%clk 0:02:28]}  Nxd4 {[%clk 0:02:24]} 12. Bxb7 {[%clk 0:02:23]}  Ne2+ {[%clk 0:02:24]} 13. Kh1 {[%clk 0:02:21]}  Rb8 {[%clk 0:02:24]} 14. Be4 {[%clk 0:02:07]}  Nxc1 {[%clk 0:02:24]} 15. Rxc1 {[%clk 0:02:06]}  Bxe5 {[%clk 0:02:23]} 16. Nc3 {[%clk 0:02:03]}  Rxb2 {[%clk 0:02:15]} 17. Rab1 {[%clk 0:01:53]}  Bxc3 {[%clk 0:01:58]} 18. Rxc3 {[%clk 0:01:54]}  Rxb1+ {[%clk 0:01:57]} 19. Bxb1 {[%clk 0:01:53]}  Kd7 {[%clk 0:01:47]} 20. g3 {[%clk 0:01:46]}  Rb8 {[%clk 0:01:45]} 21. Be4 {[%clk 0:01:47]}  c6 {[%clk 0:01:36]} 22. Rd3+ {[%clk 0:01:42]}  Kc7 {[%clk 0:01:36]} 23. Kg2 {[%clk 0:01:39]}  Rb2 {[%clk 0:01:31]} 24. Re3 {[%clk 0:01:36]}  Nc8 {[%clk 0:01:25]} 25. c5 {[%clk 0:01:15]}  Rb5 {[%clk 0:01:21]} 26. Rc3 {[%clk 0:01:15]}  Ra5 {[%clk 0:01:19]} 27. Kf3 {[%clk 0:01:11]}  Ne7 {[%clk 0:01:16]} 28. g4 {[%clk 0:01:08]}  f5 {[%clk 0:01:14]} 29. gxf5 {[%clk 0:01:08]}  gxf5 {[%clk 0:01:15]} 30. Bb1 {[%clk 0:01:01]}  Nd5 {[%clk 0:01:15]} 31. Rb3 {[%clk 0:01:01]}  Rxc5 {[%clk 0:01:11]} 32. Bxf5 {[%clk 0:01:01]}  h6 {[%clk 0:01:00]} 33. Be4 {[%clk 0:01:01]}  Nf6 {[%clk 0:00:58]} 34. Bd3 {[%clk 0:00:59]}  Nd7 {[%clk 0:00:53]} 35. Ke3 {[%clk 0:00:46]}  Ra5 {[%clk 0:00:53]} 36. Rc3 {[%clk 0:00:34]}  Nf6 {[%clk 0:00:39]} 37. Be4 {[%clk 0:00:30]}  Nxe4 {[%clk 0:00:32]} 38. Kxe4 {[%clk 0:00:29]}  Kd6 {[%clk 0:00:33]} 39. f4 {[%clk 0:00:29]}  Rh5 {[%clk 0:00:29]} 40. h3 {[%clk 0:00:24]}  c5 {[%clk 0:00:20]} 41. Rg3 {[%clk 0:00:20]}  c4 {[%clk 0:00:18]} 42. Rf3 {[%clk 0:00:13]}  Rc5 {[%clk 0:00:15]} 43. Kd4 {[%clk 0:00:13]}  Rc8 {[%clk 0:00:15]} 44. f5 {[%clk 0:00:12]}  Ke7 {[%clk 0:00:15]} 45. Kc3 {[%clk 0:00:11]}  Kf6 {[%clk 0:00:15]} 46. Rf4 {[%clk 0:00:11]}  Rc5 {[%clk 0:00:15]} 47. a4 {[%clk 0:00:11]}  Rxf5 {[%clk 0:00:15]} 48. Rxf5+ {[%clk 0:00:05]}  Kxf5 {[%clk 0:00:15]} 49. Kxc4 {[%clk 0:00:06]}  Kg5 {[%clk 0:00:15]} 50. Kb5 {[%clk 0:00:06]}  Kh4 {[%clk 0:00:16]} 51. Ka6 {[%clk 0:00:06]}  Kxh3 {[%clk 0:00:16]} 52. Kxa7 {[%clk 0:00:07]}  h5 {[%clk 0:00:16]} 53. a5 {[%clk 0:00:08]}  h4 {[%clk 0:00:17]} 54. a6 {[%clk 0:00:09]}  Kh2 {[%clk 0:00:14]} 55. Kb6 {[%clk 0:00:09]}  h3 {[%clk 0:00:15]} 56. a7 {[%clk 0:00:10]}  Kg1 {[%clk 0:00:15]} 57. a8=Q {[%clk 0:00:10]}  h2 {[%clk 0:00:16]} 58. Qg8+ {[%clk 0:00:11]}  Kf2 {[%clk 0:00:15]} 59. Qf7+ {[%clk 0:00:11]}  Kg2 {[%clk 0:00:15]} 60. Qg6+ {[%clk 0:00:11]}  Kf2 {[%clk 0:00:15]} 61. Qf5+ {[%clk 0:00:11]}  Kg2 {[%clk 0:00:15]} 62. Qh5 {[%clk 0:00:12]}  h1=Q {[%clk 0:00:14]} 63. Qd5+ {[%clk 0:00:13]}  Kg1 {[%clk 0:00:14]} 64. Qxh1+ {[%clk 0:00:14]}  Kxh1 {[%clk 0:00:14]} 1/2-1/2


[Site "https://www.chess.com"]

[Event "Titled Tuesday Blitz October 11 Early 2022"]
[White "Pershin, Denis"]
[Black "Moreno Perez, Tobias Sebastian"]
[WhiteFideId "24165506"]
[BlackFideId "186716"]
[WhiteElo "2300"]
[BlackElo "2479"]
[Result "0-1"]
[Round "03"]
[TimeControl "180+1"]
[Date "2022.10.12"]
[WhiteClock "0:00:01"]
[BlackClock "0:00:07"]

1. d4 {[%clk 0:03:00]}  d5 {[%clk 0:02:59]} 2. Nc3 {[%clk 0:02:55]}  Nf6 {[%clk 0:02:59]} 3. Bf4 {[%clk 0:02:54]}  c5 {[%clk 0:02:59]} 4. e3 {[%clk 0:02:52]}  cxd4 {[%clk 0:02:59]} 5. exd4 {[%clk 0:02:53]}  Bg4 {[%clk 0:02:59]} 6. f3 {[%clk 0:02:53]}  Bd7 {[%clk 0:02:58]} 7. Nb5 {[%clk 0:02:54]}  Bxb5 {[%clk 0:02:58]} 8. Bxb5+ {[%clk 0:02:54]}  Nc6 {[%clk 0:02:58]} 9. c3 {[%clk 0:02:53]}  e6 {[%clk 0:02:57]} 10. Ne2 {[%clk 0:02:53]}  Bd6 {[%clk 0:02:57]} 11. Qd2 {[%clk 0:02:53]}  O-O {[%clk 0:02:55]} 12. O-O {[%clk 0:02:52]}  Rc8 {[%clk 0:02:50]} 13. Bd3 {[%clk 0:02:48]}  Na5 {[%clk 0:02:46]} 14. Bxd6 {[%clk 0:02:39]}  Qxd6 {[%clk 0:02:44]} 15. Rae1 {[%clk 0:02:36]}  Nc4 {[%clk 0:02:43]} 16. Bxc4 {[%clk 0:02:36]}  Rxc4 {[%clk 0:02:41]} 17. Nf4 {[%clk 0:02:37]}  b5 {[%clk 0:02:38]} 18. Nd3 {[%clk 0:02:37]}  Nd7 {[%clk 0:02:38]} 19. b4 {[%clk 0:02:32]}  Rcc8 {[%clk 0:02:05]} 20. a4 {[%clk 0:02:26]}  bxa4 {[%clk 0:01:57]} 21. Ra1 {[%clk 0:02:26]}  Nb6 {[%clk 0:01:56]} 22. Nc5 {[%clk 0:02:26]}  a5 {[%clk 0:01:30]} 23. b5 {[%clk 0:01:57]}  a3 {[%clk 0:01:25]} 24. Rfb1 {[%clk 0:01:46]}  Nc4 {[%clk 0:01:21]} 25. Qd3 {[%clk 0:01:45]}  Rb8 {[%clk 0:01:07]} 26. Rb3 {[%clk 0:01:35]}  Rfc8 {[%clk 0:01:06]} 27. g3 {[%clk 0:01:09]}  Qd8 {[%clk 0:00:50]} 28. Kg2 {[%clk 0:01:07]}  Qe8 {[%clk 0:00:50]} 29. b6 {[%clk 0:00:41]}  a4 {[%clk 0:00:42]} 30. Rb4 {[%clk 0:00:36]}  Qc6 {[%clk 0:00:23]} 31. b7 {[%clk 0:00:26]}  Rd8 {[%clk 0:00:22]} 32. Kf2 {[%clk 0:00:16]}  e5 {[%clk 0:00:21]} 33. Qc2 {[%clk 0:00:15]}  exd4 {[%clk 0:00:18]} 34. cxd4 {[%clk 0:00:16]}  Qh6 {[%clk 0:00:18]} 35. Kg1 {[%clk 0:00:03]}  Qe3+ {[%clk 0:00:17]} 36. Kh1 {[%clk 0:00:03]}  Qxd4 {[%clk 0:00:15]} 37. Rab1 {[%clk 0:00:01]}  Qxc5 {[%clk 0:00:15]} 38. Qxa4 {[%clk 0:00:02]}  Qf2 {[%clk 0:00:10]} 39. Qb3 {[%clk 0:00:01]}  Ne3 {[%clk 0:00:07]} 0-1


[Site "https://www.chess.com"]

[Event "Titled Tuesday Blitz October 11 Early 2022"]
[White "Piesik, Piotr"]
[Black "Bacrot, Etienne"]
[WhiteFideId "1136194"]
[BlackFideId "605506"]
[WhiteElo "2323"]
[BlackElo "2666"]
[Result "0-1"]
[Round "03"]
[TimeControl "180+1"]
[Date "2022.10.11"]
[WhiteClock "0:00:04"]
[BlackClock "0:00:10"]

1. Nf3 {[%clk 0:02:56]}  d5 {[%clk 0:02:59]} 2. g3 {[%clk 0:02:56]}  Nf6 {[%clk 0:02:59]} 3. Bg2 {[%clk 0:02:57]}  g6 {[%clk 0:02:59]} 4. O-O {[%clk 0:02:58]}  Bg7 {[%clk 0:02:59]} 5. d4 {[%clk 0:02:58]}  O-O {[%clk 0:02:59]} 6. c4 {[%clk 0:02:59]}  c6 {[%clk 0:03:00]} 7. Nc3 {[%clk 0:02:59]}  dxc4 {[%clk 0:02:57]} 8. a4 {[%clk 0:02:58]}  Bg4 {[%clk 0:02:55]} 9. a5 {[%clk 0:02:47]}  Nd5 {[%clk 0:02:35]} 10. Qa4 {[%clk 0:02:35]}  Bxf3 {[%clk 0:02:15]} 11. Bxf3 {[%clk 0:02:36]}  Bxd4 {[%clk 0:02:14]} 12. Nxd5 {[%clk 0:02:36]}  cxd5 {[%clk 0:02:13]} 13. Rd1 {[%clk 0:02:36]}  Nc6 {[%clk 0:02:02]} 14. e3 {[%clk 0:02:34]}  Bg7 {[%clk 0:01:49]} 15. Bxd5 {[%clk 0:02:28]}  Qc7 {[%clk 0:01:06]} 16. a6 {[%clk 0:02:06]}  Rad8 {[%clk 0:01:03]} 17. Qxc4 {[%clk 0:01:50]}  e6 {[%clk 0:00:41]} 18. Bf3 {[%clk 0:01:47]}  Rxd1+ {[%clk 0:00:41]} 19. Bxd1 {[%clk 0:01:48]}  Qd6 {[%clk 0:00:36]} 20. Be2 {[%clk 0:01:42]}  b6 {[%clk 0:00:32]} 21. Ra3 {[%clk 0:01:39]}  Ne5 {[%clk 0:00:30]} 22. Qc2 {[%clk 0:01:34]}  Rd8 {[%clk 0:00:26]} 23. Rc3 {[%clk 0:01:27]}  b5 {[%clk 0:00:19]} 24. Rc8 {[%clk 0:01:24]}  b4 {[%clk 0:00:16]} 25. Rxd8+ {[%clk 0:01:23]}  Qxd8 {[%clk 0:00:16]} 26. Bd2 {[%clk 0:01:13]}  Bf8 {[%clk 0:00:12]} 27. b3 {[%clk 0:01:09]}  Qa5 {[%clk 0:00:11]} 28. Kg2 {[%clk 0:00:50]}  Qc5 {[%clk 0:00:10]} 29. Qe4 {[%clk 0:00:40]}  Bd6 {[%clk 0:00:08]} 30. f4 {[%clk 0:00:35]}  Qc6 {[%clk 0:00:08]} 31. Bf3 {[%clk 0:00:21]}  Qxe4 {[%clk 0:00:08]} 32. Bxe4 {[%clk 0:00:22]}  Nd7 {[%clk 0:00:09]} 33. Bc2 {[%clk 0:00:17]}  Kf8 {[%clk 0:00:08]} 34. Kf3 {[%clk 0:00:17]}  Ke7 {[%clk 0:00:09]} 35. e4 {[%clk 0:00:17]}  Bc5 {[%clk 0:00:09]} 36. e5 {[%clk 0:00:16]}  Kd8 {[%clk 0:00:09]} 37. Ke4 {[%clk 0:00:16]}  Kc7 {[%clk 0:00:09]} 38. Bd3 {[%clk 0:00:16]}  h5 {[%clk 0:00:09]} 39. h3 {[%clk 0:00:16]}  Kc6 {[%clk 0:00:09]} 40. g4 {[%clk 0:00:16]}  hxg4 {[%clk 0:00:10]} 41. hxg4 {[%clk 0:00:17]}  Be7 {[%clk 0:00:09]} 42. Bc4 {[%clk 0:00:16]}  Nc5+ {[%clk 0:00:10]} 43. Kf3 {[%clk 0:00:16]}  Nd7 {[%clk 0:00:10]} 44. Be3 {[%clk 0:00:16]}  Bc5 {[%clk 0:00:09]} 45. Bxc5 {[%clk 0:00:15]}  Kxc5 {[%clk 0:00:10]} 46. Ke4 {[%clk 0:00:15]}  Nb8 {[%clk 0:00:08]} 47. f5 {[%clk 0:00:15]}  gxf5+ {[%clk 0:00:09]} 48. gxf5 {[%clk 0:00:16]}  Kc6 {[%clk 0:00:05]} 49. Kf4 {[%clk 0:00:10]}  Kd7 {[%clk 0:00:05]} 50. Kg5 {[%clk 0:00:08]}  exf5 {[%clk 0:00:04]} 51. Kxf5 {[%clk 0:00:09]}  Ke7 {[%clk 0:00:05]} 52. Ke4 {[%clk 0:00:08]}  Nd7 {[%clk 0:00:05]} 53. Kd5 {[%clk 0:00:07]}  Nb6+ {[%clk 0:00:03]} 54. Kc5 {[%clk 0:00:07]}  Nd7+ {[%clk 0:00:04]} 55. Kxb4 {[%clk 0:00:04]}  Nxe5 {[%clk 0:00:04]} 56. Kc5 {[%clk 0:00:03]}  Nxc4 {[%clk 0:00:04]} 57. Kxc4 {[%clk 0:00:02]}  Kd6 {[%clk 0:00:05]} 58. b4 {[%clk 0:00:01]}  Kc6 {[%clk 0:00:05]} 59. b5+ {[%clk 0:00:01]}  Kb6 {[%clk 0:00:06]} 60. Kb4 {[%clk 0:00:01]}  f6 {[%clk 0:00:06]} 61. Kc4 {[%clk 0:00:02]}  f5 {[%clk 0:00:06]} 62. Kd4 {[%clk 0:00:01]}  Kxb5 {[%clk 0:00:07]} 63. Ke5 {[%clk 0:00:01]}  Kxa6 {[%clk 0:00:07]} 64. Kxf5 {[%clk 0:00:02]}  Kb5 {[%clk 0:00:08]} 65. Ke4 {[%clk 0:00:03]}  Kc4 {[%clk 0:00:08]} 66. Ke3 {[%clk 0:00:03]}  Kc3 {[%clk 0:00:09]} 67. Ke2 {[%clk 0:00:04]}  Kc2 {[%clk 0:00:10]} 0-1


[Site "https://www.chess.com"]

[Event "Titled Tuesday Blitz October 11 Early 2022"]
[White "Predke, Alexandr"]
[Black "Sarana, Alexey"]
[WhiteFideId "24107581"]
[BlackFideId "24133795"]
[WhiteElo "2614"]
[BlackElo "2689"]
[Result "1/2-1/2"]
[Round "03"]
[TimeControl "180+1"]
[Date "2022.10.11"]
[WhiteClock "0:00:35"]
[BlackClock "0:00:13"]

1. Nf3 {[%clk 0:03:00]}  d5 {[%clk 0:02:59]} 2. g3 {[%clk 0:03:00]}  g6 {[%clk 0:02:59]} 3. d4 {[%clk 0:02:59]}  c6 {[%clk 0:02:59]} 4. Bg2 {[%clk 0:02:57]}  Bg7 {[%clk 0:02:59]} 5. O-O {[%clk 0:02:58]}  Nf6 {[%clk 0:03:00]} 6. a4 {[%clk 0:02:58]}  O-O {[%clk 0:02:59]} 7. a5 {[%clk 0:02:58]}  Bf5 {[%clk 0:02:57]} 8. Bf4 {[%clk 0:02:57]}  Nbd7 {[%clk 0:02:57]} 9. Nbd2 {[%clk 0:02:53]}  Nh5 {[%clk 0:02:52]} 10. Be3 {[%clk 0:02:52]}  Nhf6 {[%clk 0:02:41]} 11. Bf4 {[%clk 0:02:51]}  h6 {[%clk 0:02:39]} 12. h3 {[%clk 0:02:44]}  Rc8 {[%clk 0:02:39]} 13. c3 {[%clk 0:02:43]}  g5 {[%clk 0:02:22]} 14. Be3 {[%clk 0:02:42]}  Bg6 {[%clk 0:02:20]} 15. Ne5 {[%clk 0:02:31]}  Nxe5 {[%clk 0:02:07]} 16. dxe5 {[%clk 0:02:32]}  Nd7 {[%clk 0:02:07]} 17. f4 {[%clk 0:02:32]}  e6 {[%clk 0:02:08]} 18. Bxa7 {[%clk 0:02:30]}  c5 {[%clk 0:02:05]} 19. e4 {[%clk 0:02:19]}  Ra8 {[%clk 0:01:57]} 20. f5 {[%clk 0:02:09]}  Bh7 {[%clk 0:01:33]} 21. f6 {[%clk 0:01:42]}  Rxa7 {[%clk 0:01:04]} 22. fxg7 {[%clk 0:01:42]}  Re8 {[%clk 0:01:03]} 23. exd5 {[%clk 0:01:41]}  Nxe5 {[%clk 0:01:03]} 24. dxe6 {[%clk 0:01:36]}  Rxe6 {[%clk 0:01:02]} 25. Ne4 {[%clk 0:01:25]}  Qxd1 {[%clk 0:00:53]} 26. Rfxd1 {[%clk 0:01:12]}  Bxe4 {[%clk 0:00:49]} 27. Bxe4 {[%clk 0:01:12]}  Kxg7 {[%clk 0:00:50]} 28. Bd5 {[%clk 0:01:08]}  Re7 {[%clk 0:00:49]} 29. b4 {[%clk 0:01:07]}  cxb4 {[%clk 0:00:32]} 30. cxb4 {[%clk 0:01:07]}  Nc6 {[%clk 0:00:32]} 31. a6 {[%clk 0:01:02]}  Nxb4 {[%clk 0:00:11]} 32. axb7 {[%clk 0:01:02]}  Raxb7 {[%clk 0:00:08]} 33. Bxb7 {[%clk 0:01:03]}  Rxb7 {[%clk 0:00:08]} 34. Rab1 {[%clk 0:01:03]}  Rb6 {[%clk 0:00:09]} 35. Kg2 {[%clk 0:00:49]}  Nd5 {[%clk 0:00:08]} 36. Rxb6 {[%clk 0:00:48]}  Nxb6 {[%clk 0:00:09]} 37. Rd4 {[%clk 0:00:46]}  Nc8 {[%clk 0:00:09]} 38. Kf3 {[%clk 0:00:45]}  Ne7 {[%clk 0:00:09]} 39. Rd7 {[%clk 0:00:41]}  Nf5 {[%clk 0:00:09]} 40. Rd5 {[%clk 0:00:38]}  Kg6 {[%clk 0:00:10]} 41. Ra5 {[%clk 0:00:36]}  h5 {[%clk 0:00:10]} 42. g4 {[%clk 0:00:33]}  hxg4+ {[%clk 0:00:10]} 43. hxg4 {[%clk 0:00:34]}  Nh6 {[%clk 0:00:10]} 44. Ra6+ {[%clk 0:00:33]}  f6 {[%clk 0:00:11]} 45. Ra5 {[%clk 0:00:33]}  Kg7 {[%clk 0:00:11]} 46. Ra7+ {[%clk 0:00:33]}  Kg6 {[%clk 0:00:12]} 47. Ra6 {[%clk 0:00:34]}  Nf7 {[%clk 0:00:13]} 48. Ra8 {[%clk 0:00:34]}  Nh6 {[%clk 0:00:13]} 49. Ra7 {[%clk 0:00:33]}  Nf7 {[%clk 0:00:13]} 50. Ra8 {[%clk 0:00:34]}  Nh6 {[%clk 0:00:13]} 51. Ra7 {[%clk 0:00:34]}  Nf7 {[%clk 0:00:13]} 52. Ra8 {[%clk 0:00:35]} 1/2-1/2


[Site "https://www.chess.com"]